bitfinex-derivatives/quotes_ETHF0:USTF0_20240907
["timestamp","ask_amount","ask_price","bid_price","bid_amount"]
[1725731733110,0.44027,2271.5,2271.1,3.2078]
[1725731733311,0.44028,2271.4,2271.1,3.2078]
[1725731733511,9.31677917,2271.5,2270.8,1.4715]
[1725731733803,9.31677917,2271.5,2269.7,0.20630658]
[1725731733804,3.2078,2271.0,2269.7,3.2078]
[1725731734009,0.44048,2270.4,2269.7,3.2078]
[1725731734205,0.44048,2270.4,2270.0,0.44054]
[1725731734404,0.44048,2270.4,2269.9,0.44055]
[1725731734608,4.87970614,2270.3,2270.0,3.2078]
[1725731734803,3.64822,2270.7,2270.3,0.44047]
[1725731735011,4.87970614,2270.5,2270.4,0.44047]
[1725731735205,3.2078,2270.7,2270.5,0.44045]
[1725731735606,3.2078,2270.7,2270.6,0.44043]
[1725731735811,4.44612563,2271.1,2270.9,0.44036]
[1725731735812,3.2078,2271.1,2270.9,0.44036]
[1725731736017,3.2078,2271.1,2270.8,0.44039]
[1725731736218,3.2078,2271.1,2271.0,0.44035]
[1725731736518,0.21652424,2271.4,2270.7,3.2078]
[1725731736708,1.91722,2271.7,2271.3,0.44029]
[1725731737011,11.05241255,2271.4,2271.0,3.2078]
[1725731737210,11.05241255,2271.4,2271.3,0.44029]
[1725731737414,3.2078,2272.1,2271.6,0.44023]
[1725731737607,3.2078,2272.1,2271.8,0.44019]
[1725731737812,3.2078,2272.1,2271.6,3.2078]
[1725731737813,4.88082731,2272.0,2271.7,0.4402]
[1725731740211,4.88082731,2272.0,2271.3,1.3563]
[1725731740720,4.88082731,2272.0,2271.8,0.44019]
[1725731740917,4.88082731,2272.0,2271.5,3.2078]
[1725731741113,4.23,2272.6,2271.8,3.2078]
[1725731741322,4.23,2272.6,2271.9,3.2078]
[1725731741517,20.33709964,2272.6,2272.3,0.44009]
[1725731741710,20.77715964,2272.6,2272.1,0.44013]
[1725731741915,20.33709964,2272.6,2271.8,3.2078]
[1725731742116,20.33709964,2272.6,2272.2,0.44011]
[1725731742117,20.77713964,2272.6,2272.2,0.44011]
[1725731742322,20.77713964,2272.6,2272.1,0.44013]
[1725731742617,20.33709964,2272.6,2272.3,0.44009]
[1725731742915,20.33709964,2272.6,2272.2,0.44011]
[1725731743316,4.89483234,2272.6,2272.4,0.44007]
[1725731743623,4.89483234,2272.6,2271.3,2.8399]
[1725731743624,4.89483234,2272.6,2272.3,3.2078]
[1725731743819,4.89483234,2272.6,2272.5,0.44006]
[1725731744118,4.89483234,2272.6,2272.3,3.64789]
[1725731744422,3.2078,2272.5,2272.3,0.44009]
[1725731745120,8.53777,2272.9,2272.2,0.44012]
[1725731745321,0.44005,2272.6,2272.2,0.44012]
[1725731745519,0.44007,2272.5,2272.1,0.44013]
[1725731746015,8.53777,2272.9,2271.7,1.10055]
[1725731746216,0.44005,2272.6,2272.2,0.44012]
[1725731746920,0.44007,2272.5,2272.1,0.44013]
[1725731747316,0.44007,2272.5,2271.5,1.1006]
[1725731747317,7.4378,2272.6,2271.5,3.2078]
[1725731747507,5.01443922,2272.4,2272.0,0.44014]
[1725731747711,5.01443922,2272.5,2272.2,0.44012]
[1725731747918,7.4378,2272.6,2272.3,0.44009]
[1725731748315,4.67613207,2272.5,2271.9,2.39780834]
[1725731748513,4.67613207,2272.5,2272.3,0.44009]
[1725731749022,3.2078,2272.6,2271.9,2.39780834]
[1725731749222,7.4378,2273.0,2272.4,0.44007]
[1725731749527,0.44002,2272.8,2272.3,0.44008]
[1725731749711,0.44004,2272.7,2272.3,0.44009]
[1725731749909,4.06,2272.5,2272.3,0.44009]
[1725731750121,4.06,2272.5,2272.4,0.44008]
[1725731750613,4.06,2272.5,2272.2,3.2078]
[1725731750924,0.44001,2272.8,2272.4,0.44007]
[1725731751617,0.44001,2272.8,2272.5,0.44006]
[1725731751925,0.44001,2272.8,2272.4,0.44007]
[1725731752534,8.80894491,2272.9,2272.7,0.44001]
[1725731752712,4.06,2272.9,2272.7,0.44001]
[1725731753113,4.06,2272.9,2272.8,0.44]
[1725731753313,4.06,2273.1,2272.6,3.2078]
[1725731753515,4.06,2273.1,2273.0,0.43996]
[1725731753810,4.9538898,2273.3,2273.1,0.43994]
[1725731754016,4.06,2273.4,2273.1,0.43994]
[1725731754512,4.06,2273.4,2273.0,0.43996]
[1725731754513,4.6223678,2273.3,2273.0,0.43996]
[1725731754825,4.06,2273.4,2273.1,0.43994]
[1725731755020,4.06,2273.4,2273.2,0.43991]
[1725731755225,4.06,2273.4,2273.1,0.43994]
[1725731755831,4.06,2273.4,2273.2,0.43992]
[1725731756012,4.06,2273.4,2273.0,3.2078]
[1725731756219,4.06,2273.4,2273.2,0.43991]
[1725731756523,4.06,2273.4,2273.1,0.43993]
[1725731758123,0.2080416,2273.3,2273.0,0.43995]
[1725731758318,4.06,2273.4,2273.0,0.43995]
[1725731758627,0.20803595,2273.3,2273.0,0.43995]
[1725731758926,4.06,2273.4,2273.0,0.43995]
[1725731759123,8.77827034,2273.2,2273.1,0.43994]
[1725731759329,8.98631314,2273.2,2273.0,0.43996]
[1725731759518,4.06,2273.2,2273.0,0.43996]
[1725731760021,1.57315041,2273.1,2273.0,0.43996]
[1725731760523,1.57315041,2273.1,2272.7,3.2078]
[1725731760524,1.57315041,2273.1,2272.9,0.43997]
[1725731760726,0.89543761,2273.0,2272.9,0.43997]
[1725731760917,0.89543761,2273.0,2272.4,3.2078]
[1725731761225,5.63315041,2272.9,2272.4,3.2078]
[1725731761428,1.36511831,2272.8,2272.5,0.44005]
[1725731761623,1.36511831,2272.7,2272.5,0.44005]
[1725731761830,0.6777128,2272.8,2272.6,0.44004]
[1725731762131,0.8954569,2272.7,2272.6,0.44004]
[1725731762633,0.8954569,2272.7,2272.6,4.84004]
[1725731763020,0.48318352,2272.7,2272.6,4.84004]
[1725731763216,0.62030901,2272.7,2272.6,4.84004]
[1725731763420,4.06,2272.9,2272.8,0.44]
[1725731763726,4.95553765,2272.9,2272.8,0.44]
[1725731763922,0.89553765,2272.9,2272.8,0.44]
[1725731764115,2.22708187,2273.2,2272.8,4.4]
[1725731764321,0.67788856,2272.9,2272.7,4.30784]
[1725731764626,0.67788856,2273.0,2272.9,0.43998]
[1725731765030,0.67788856,2273.1,2273.0,0.43996]
[1725731765328,0.67788856,2273.1,2273.0,3.64776]
[1725731765531,0.67788856,2273.1,2273.0,8.04696]
[1725731765733,0.67788856,2273.1,2273.0,9.64596]
[1725731765934,0.67788856,2273.2,2273.1,0.43994]
[1725731766428,0.89557879,2273.2,2273.1,4.83914]
[1725731766627,0.89557879,2273.2,2273.1,0.43994]
[1725731767326,0.89557879,2273.2,2273.1,4.83914]
[1725731767534,0.89592679,2273.2,2273.1,4.3992]
[1725731767827,1.57418214,2273.2,2273.1,4.83914]
[1725731768024,0.20819,2273.2,2273.1,4.83914]
[1725731768622,4.06,2273.4,2273.3,0.43991]
[1725731768820,4.68077877,2273.4,2273.3,4.69815075]
[1725731769228,4.26818093,2273.4,2273.3,4.69815075]
[1725731769431,4.6807856,2273.4,2273.2,0.43991]
[1725731769627,0.20818811,2273.3,2273.0,5.9982]
[1725731769831,4.06,2273.4,2273.2,0.43992]
[1725731770132,0.20819712,2273.3,2273.2,0.43992]
[1725731770335,0.20819712,2273.3,2273.1,0.43994]
[1725731770528,0.20819712,2273.3,2273.1,0.199062]
[1725731770529,3.02640269,2273.2,2273.1,0.199062]
[1725731770723,3.46656354,2273.2,2273.1,0.199062]
[1725731770929,3.25836898,2273.2,2273.1,0.199062]
[1725731771242,2.8186525,2273.3,2273.2,0.43993]
[1725731771426,3.46702727,2273.3,2273.2,0.43993]
[1725731772132,0.64837477,2273.3,2273.2,0.43993]
[1725731772336,3.25856983,2273.3,2273.2,0.43993]
[1725731773037,2.81840715,2273.4,2273.2,8.04693]
[1725731773229,2.81840715,2273.4,2273.3,0.43991]
[1725731773536,2.81840715,2273.5,2273.4,0.43989]
[1725731773734,0.208216,2273.5,2273.4,0.43989]
[1725731773934,3.02595257,2273.5,2273.4,4.83829]
[1725731774138,5.07257078,2273.5,2273.4,14.04609]
[1725731774333,2.81801457,2273.5,2273.4,14.04609]
[1725731774538,2.25455621,2273.6,2273.5,0.43987]
[1725731774833,2.25455621,2273.6,2273.5,4.83827]
[1725731775035,2.25455621,2273.6,2273.5,10.83827]
[1725731775351,2.25455621,2273.6,2272.4,0.44007]
[1725731775352,1.09972,2273.4,2272.4,0.44007]
[1725731775640,1.09972,2273.4,2272.3,0.44009]
[1725731775641,1.68979934,2272.5,2272.3,0.44009]
[1725731775830,1.68979934,2272.5,2272.1,0.44012]
[1725731776027,0.44012,2272.2,2271.7,3.48861]
[1725731776234,0.44012,2272.2,2271.6,3.43158665]
[1725731776235,4.89759934,2272.1,2271.6,0.22378665]
[1725731776548,7.2678,2271.7,2271.2,1.5291]
[1725731776740,1.6892863,2271.4,2271.2,1.5291]
[1725731776931,1.6892863,2271.3,2271.2,1.5291]
[1725731777135,1.6892863,2271.3,2270.6,3.2078]
[1725731777338,1.6892863,2270.9,2270.6,3.2078]
[1725731777540,4.06,2271.1,2270.6,3.2078]
[1725731777842,4.06,2271.1,2270.6,3.64823]
[1725731778047,4.06,2271.1,2270.6,3.2078]
[1725731778340,4.06,2271.1,2270.6,3.64822]
[1725731778535,4.06,2271.1,2270.7,0.44041]
[1725731778939,1.6892863,2271.3,2271.0,0.44033]
[1725731779139,5.7492863,2271.4,2271.0,0.44033]
[1725731779335,0.20819046,2271.3,2270.9,3.64816]
[1725731779531,5.7492863,2271.4,2271.0,0.44035]
[1725731779845,4.06,2271.4,2271.2,0.44031]
[1725731780040,4.06,2271.4,2271.1,3.64812]
[1725731780244,4.06,2271.4,2271.3,0.44029]
[1725731780439,1.6892863,2271.6,2271.3,0.44029]
[1725731780845,8.9570863,2271.7,2271.3,0.44029]
[1725731781040,0.20823222,2271.6,2271.2,3.2078]
[1725731781242,1.6892863,2271.6,2271.5,0.44025]
[1725731781445,0.20822725,2271.6,2271.5,0.44025]
[1725731782245,1.89752037,2271.6,2271.5,0.44025]
[1725731782437,0.20823407,2271.6,2271.5,0.44025]
[1725731783044,1.89752037,2271.6,2271.5,0.44025]
[1725731783238,1.6892863,2271.6,2271.5,0.44025]
[1725731783438,1.89747205,2271.6,2271.5,0.44025]
[1725731783744,1.6892863,2271.6,2271.5,4.84265]
[1725731783946,3.2078,2271.7,2271.6,0.44024]
[1725731784443,3.2078,2271.7,2271.6,4.84264]
[1725731784650,1.6892863,2271.8,2271.7,0.44022]
[1725731784947,0.20813606,2271.8,2271.7,3.2078]
[1725731785244,1.6892863,2271.9,2271.7,7.6094]
[1725731785445,1.628,2272.2,2271.7,3.2078]
[1725731785645,0.62057536,2272.1,2271.7,3.2078]
[1725731785941,0.20814532,2272.0,2271.7,3.2078]
[1725731786143,0.20814532,2271.9,2271.7,3.2078]
[1725731786343,0.20814532,2271.9,2271.4,3.64806]
[1725731786546,4.06,2272.0,2271.1,1.6182]
[1725731786743,1.06082783,2271.9,2271.1,2.05852]
[1725731787046,0.2081831,2271.8,2271.2,3.64811]
[1725731787346,0.2081831,2271.7,2271.2,3.2078]
[1725731787545,4.50016,2272.0,2271.2,3.2078]
[1725731787748,5.61833236,2271.9,2271.3,3.2078]
[1725731787941,0.20819591,2271.8,2271.3,3.2078]
[1725731788440,0.20819591,2271.8,2271.2,0.44031]
[1725731788441,3.82854207,2271.8,2271.2,0.44031]
[1725731788645,0.20819591,2271.7,2271.2,3.2078]
[1725731788944,0.20819591,2271.7,2271.2,3.64811]
[1725731789749,4.26819591,2271.7,2271.2,3.2078]
[1725731789938,0.20819591,2271.6,2271.2,3.2078]
[1725731790243,4.06,2271.7,2271.2,3.2078]
[1725731790747,4.06,2271.7,2271.2,3.64811]
[1725731791048,4.06,2271.7,2271.2,3.2078]
[1725731791641,4.50022,2271.7,2271.2,3.2078]
[1725731791846,0.44024,2271.6,2270.7,3.2078]
[1725731792048,4.06,2271.7,2270.9,0.44036]
[1725731792244,0.44024,2271.6,2270.9,0.44036]
[1725731793052,4.06,2271.7,2271.0,3.2078]
[1725731793263,4.06,2271.7,2271.1,3.2078]
[1725731793447,4.06,2271.7,2271.3,0.44028]
[1725731793754,0.44017,2272.0,2271.3,3.2078]
[1725731793755,4.06,2272.0,2271.3,3.2078]
[1725731793951,4.06,2271.7,2271.0,0.44034]
[1725731794252,9.45258901,2271.7,2270.7,3.2078]
[1725731794551,4.50023,2271.7,2270.7,3.2078]
[1725731794950,4.50023,2271.7,2271.0,3.2078]
[1725731795145,4.06,2271.7,2271.0,3.64814]
[1725731795453,4.06,2271.4,2271.0,3.2078]
[1725731795643,4.06,2271.4,2271.0,3.64815]
[1725731795842,4.06,2271.4,2271.0,3.2078]
[1725731796049,4.06,2271.4,2271.0,3.64815]
[1725731796355,4.06,2271.4,2271.1,0.44033]
[1725731796656,4.06,2271.4,2271.0,3.64814]
[1725731796953,4.06,2271.4,2271.1,0.44033]
[1725731797138,4.06,2271.4,2271.0,3.2078]
[1725731797340,4.06,2271.4,2271.1,0.44032]
[1725731797554,4.06,2271.4,2271.0,3.64814]
[1725731797754,4.06,2271.4,2271.0,3.2078]
[1725731797953,4.06,2271.4,2271.1,0.44032]
[1725731798455,4.06,2271.4,2271.0,3.2078]
[1725731798757,4.06,2271.4,2271.1,0.44033]
[1725731798953,4.06,2271.4,2271.0,3.2078]
[1725731799249,4.06,2271.4,2270.6,4.8383]
[1725731799753,4.06,2271.4,2271.0,0.44034]
[1725731800452,4.06,2271.4,2271.1,0.44032]
[1725731800766,4.06,2271.4,2271.2,0.44031]
[1725731801644,4.06,2271.4,2271.3,0.44029]
[1725731801847,4.06,2271.4,2271.2,0.4403]
[1725731802546,7.2678,2271.4,2270.9,3.2078]
[1725731802749,4.06,2271.1,2270.9,0.44036]
[1725731802941,3.2078,2271.0,2270.6,0.44041]
[1725731803150,4.06,2270.8,2270.5,0.44044]
[1725731803449,4.06,2270.8,2270.6,0.44042]
[1725731803648,4.06,2270.8,2270.3,3.2078]
[1725731803844,4.06,2270.8,2270.6,0.44042]
[1725731804161,4.06,2270.8,2270.5,0.44044]
[1725731804345,4.06,2270.8,2270.4,0.44046]
[1725731804546,4.06,2270.8,2270.5,0.44045]
[1725731804854,4.06,2270.8,2270.6,0.44043]
[1725731805440,0.66020009,2271.1,2270.8,0.44038]
[1725731805441,4.06,2271.1,2270.8,0.44038]
[1725731806650,4.06,2271.1,2270.9,0.44037]
[1725731807156,4.06,2271.1,2270.8,0.44038]
[1725731807455,3.64816,2271.0,2270.5,0.44044]
[1725731807654,4.06,2270.8,2270.5,0.44044]
[1725731807853,4.06,2270.8,2270.2,3.2078]
[1725731808250,4.06,2271.1,2270.5,4.30889]
[1725731808446,4.06,2271.1,2271.0,0.44035]
[1725731810653,4.06,2271.4,2271.1,0.44031]
[1725731810849,4.06,2271.4,2271.2,0.44031]
[1725731811053,4.06,2271.4,2270.6,4.30884]
[1725731811257,4.06,2271.1,2270.8,0.44037]
[1725731811455,4.06,2270.9,2270.3,3.2078]
[1725731811657,4.06,2270.9,2270.6,0.44042]
[1725731811859,4.06,2270.9,2270.7,0.4404]
[1725731813055,4.06,2270.9,2270.6,0.44042]
[1725731814348,4.06,2270.9,2270.7,0.44041]
[1725731814960,4.06,2271.1,2271.0,0.44035]
[1725731815261,3.2078,2271.3,2270.6,3.2078]
[1725731815459,3.2078,2271.3,2271.2,0.44031]
[1725731815657,3.2078,2271.3,2271.1,0.44032]
[1725731815868,3.2078,2271.3,2271.2,0.44031]
[1725731818065,4.06,2271.4,2271.3,0.44029]
[1725731818563,4.06,2271.4,2270.9,4.8605]
[1725731818766,4.06,2271.4,2271.3,0.44029]
[1725731818962,4.2680287,2271.4,2271.3,0.44029]
[1725731819166,4.06,2271.4,2271.3,0.44029]
[1725731819353,4.26801659,2271.4,2271.3,0.44029]
[1725731819962,4.06,2271.4,2271.3,0.44029]
[1725731820161,4.26801253,2271.4,2271.3,0.44029]
[1725731820354,4.06,2271.4,2271.3,0.44029]
[1725731820555,4.06,2271.4,2270.4,1.09812091]
[1725731820556,1.10079,2271.2,2270.4,1.09812091]
[1725731820772,4.06,2270.6,2270.1,3.2078]
[1725731820959,0.62011731,2270.5,2270.4,0.44046]
[1725731821265,1.57267557,2270.5,2270.1,3.2078]
[1725731821463,0.68754765,2270.4,2270.1,3.2078]
[1725731821763,0.89555102,2270.4,2270.3,0.44049]
[1725731822265,0.89553652,2270.4,2270.3,0.44048]
[1725731822765,2.373685,2270.5,2270.4,0.44047]
[1725731822968,0.88498778,2270.5,2270.4,3.64827]
[1725731823159,0.20803332,2270.5,2270.4,8.05307]
[1725731823657,0.41211185,2270.5,2270.4,7.6126]
[1725731823855,0.62014517,2270.5,2270.4,8.05307]
[1725731824167,0.20803332,2270.5,2270.4,9.15425]
[1725731824863,0.20803332,2270.5,2270.4,10.25543]
[1725731825064,0.20803332,2270.5,2270.4,16.25543]
[1725731825367,5.75673054,2270.9,2270.8,0.44039]
[1725731825567,0.89544288,2270.9,2270.8,0.44039]
[1725731825862,0.62006538,2270.9,2270.8,4.84439]
[1725731826863,0.62006538,2270.9,2270.8,0.44039]
[1725731827459,0.62006538,2270.9,2270.8,4.84439]
[1725731827657,0.62006538,2270.9,2270.8,0.44039]
[1725731827658,4.68006538,2270.9,2270.8,0.44039]
[1725731827857,4.06,2270.9,2270.8,0.44039]
[1725731828371,4.95548788,2270.9,2270.8,0.44039]
[1725731828562,4.95548788,2270.9,2270.5,3.2078]
[1725731828764,0.62010634,2270.8,2270.7,0.4404]
[1725731829870,4.06,2270.9,2270.8,0.44039]
[1725731830074,4.6801303,2270.9,2270.8,0.44039]
[1725731830374,5.09226995,2270.9,2270.8,0.44039]
[1725731830765,5.09226995,2270.9,2270.8,4.84439]
[1725731831165,5.09226995,2270.9,2270.8,0.44039]
[1725731831567,7.06438921,2270.9,2270.8,0.44039]
[1725731833572,6.04483089,2270.9,2270.8,0.44039]
[1725731833875,7.06743424,2270.9,2270.8,0.44039]
[1725731834079,7.47952079,2270.9,2270.8,4.84439]
[1725731834279,7.47952079,2270.9,2270.8,0.44039]
[1725731834575,7.47952079,2270.9,2270.8,4.84439]
[1725731834781,7.47952079,2270.9,2270.8,8.05219]
[1725731835077,6.91299038,2270.9,2270.8,8.05219]
[1725731835274,6.91299038,2270.9,2270.8,9.15317]
[1725731835475,7.47952079,2270.9,2270.8,3.64819]
[1725731836070,6.46952079,2270.9,2270.8,3.64819]
[1725731836270,5.9028007,2270.9,2270.8,3.64819]
[1725731836465,6.46952079,2270.9,2270.8,0.44039]
[1725731837067,7.70906477,2270.9,2270.8,0.44039]
[1725731839485,6.88484913,2270.9,2270.8,0.44039]
[1725731840985,6.88388688,2270.9,2270.8,0.44039]
[1725731841379,4.62157949,2270.9,2270.8,0.44039]
[1725731842286,6.88388688,2270.9,2270.8,0.44039]
[1725731842679,6.2073083,2270.9,2270.8,0.44039]
[1725731842980,6.2073083,2270.9,2270.5,3.2078]
[1725731842981,3.94500091,2270.9,2270.7,0.4404]
[1725731843179,4.62183371,2270.8,2270.7,0.4404]
[1725731843380,6.88936195,2270.8,2270.7,0.4404]
[1725731843980,4.62183371,2270.8,2270.7,0.4404]
[1725731844486,6.8899809,2270.8,2270.7,0.4404]
[1725731845689,6.89003228,2270.8,2270.7,0.4404]
[1725731846184,0.44042,2270.7,2270.4,0.44045]
[1725731846384,5.31865851,2270.5,2270.4,0.44047]
[1725731846579,6.21409828,2270.5,2270.4,0.44047]
[1725731850690,1.13414053,2270.6,2270.5,1.54158]
[1725731850894,1.70128047,2270.9,2270.8,0.44039]
[1725731851089,3.06583337,2270.9,2270.8,3.64819]
[1725731851289,2.5965484,2270.9,2270.8,8.05219]
[1725731851594,2.02965124,2270.9,2270.8,9.15317]
[1725731851788,0.61989711,2270.9,2270.8,9.15317]
[1725731851982,7.11e-06,2270.9,2270.8,16.25415]
[1725731852200,7.11e-06,2270.9,2270.8,16.47324901]
[1725731852487,1.13438331,2271.3,2270.9,1.1009]
[1725731852693,1.13438331,2271.3,2271.2,3.64811]
[1725731852888,1.40969172,2271.3,2271.2,3.64811]
[1725731853190,1.13438331,2271.3,2271.2,3.64811]
[1725731853488,1.13438331,2271.4,2271.3,0.44029]
[1725731853686,1.40967829,2271.4,2271.3,0.44029]
[1725731854197,1.40967829,2271.4,2271.3,3.64809]
[1725731854491,1.13438331,2271.4,2271.3,3.64809]
[1725731854788,4.75128047,2271.5,2271.4,0.44027]
[1725731854789,1.13438331,2271.5,2271.4,0.44027]
[1725731854995,1.13438331,2271.6,2271.5,0.44025]
[1725731855183,1.13438331,2271.6,2271.5,5.94329]
[1725731855584,4.18438331,2271.7,2271.6,0.44024]
[1725731855783,1.13438331,2271.8,2271.7,0.44022]
[1725731856292,4.75128047,2271.9,2271.8,0.4402]
[1725731856293,4.18438331,2271.9,2271.8,0.4402]
[1725731856693,3.05,2271.9,2271.8,0.4402]
[1725731857996,3.05,2271.9,2271.8,4.8418]
[1725731858791,4.18438331,2272.1,2272.0,0.44016]
[1725731859194,4.18438331,2272.3,2272.2,0.44012]
[1725731859893,3.05,2272.3,2272.2,3.64792]
[1725731860683,6.01268331,2272.5,2272.4,0.44008]
[1725731860887,4.75128047,2272.5,2272.4,0.44008]
[1725731861595,4.17952582,2272.5,2272.4,0.44008]
[1725731862095,3.46918047,2272.6,2272.4,0.44008]
[1725731862096,1.12952582,2272.6,2272.5,0.44006]
[1725731862394,1.12952582,2272.8,2272.7,0.44002]
[1725731862698,3.05,2272.9,2272.8,0.44]
[1725731863091,3.05,2272.9,2272.8,3.6478]
[1725731864400,4.90908047,2273.3,2272.8,3.6478]
[1725731864401,4.33732582,2273.3,2272.8,7.6078]
[1725731864597,3.2078,2273.3,2273.2,0.43993]
[1725731865390,3.2078,2273.3,2272.8,3.2078]
[1725731865391,3.2078,2273.3,2273.1,0.43993]
[1725731865596,3.05,2273.2,2273.0,0.43995]
[1725731866002,3.05,2273.2,2273.1,0.43994]
[1725731867601,3.2078,2273.3,2273.2,0.43993]
[1725731868096,3.05,2273.4,2273.3,0.43991]
[1725731868992,3.05,2273.6,2273.4,0.43988]
[1725731869793,3.05,2273.6,2273.4,0.43989]
[1725731869991,3.05,2273.6,2273.5,0.43987]
[1725731871600,3.05,2273.8,2273.6,0.43983]
[1725731871796,3.05,2273.8,2273.7,0.43983]
[1725731872001,3.05,2273.8,2273.7,3.64763]
[1725731873299,4.8878,2274.1,2273.8,0.4398]
[1725731873501,0.20761521,2274.0,2273.8,0.4398]
[1725731873699,4.8878,2274.1,2273.8,0.4398]
[1725731873996,0.20761559,2274.0,2273.8,0.4398]
[1725731874204,4.8878,2274.1,2273.8,0.4398]
[1725731874597,4.8878,2274.1,2273.7,3.2078]
[1725731874802,3.05,2274.1,2273.7,3.2078]
[1725731874998,1.8482,2274.2,2273.7,3.2078]
[1725731875196,1.8482,2274.2,2274.1,0.43975]
[1725731875398,1.8482,2274.2,2274.0,0.28979799]
[1725731876999,2.28794,2274.2,2273.8,0.4398]
[1725731877197,3.05,2274.1,2273.6,3.2078]
[1725731877399,3.05,2273.7,2273.3,3.2078]
[1725731877602,3.05,2273.7,2273.2,1.7981]
[1725731877799,6.6976,2273.9,2273.5,0.43985]
[1725731878001,6.2578,2273.9,2273.3,3.2078]
[1725731878400,3.05,2273.7,2273.2,0.43992]
[1725731878607,3.48984,2273.7,2273.3,0.4399]
[1725731879503,3.48984,2273.7,2273.0,3.2078]
[1725731879504,0.43987,2273.5,2273.0,3.2078]
[1725731879709,2.30326,2273.6,2273.2,0.43991]
[1725731880107,2.30326,2273.6,2273.3,0.43991]
[1725731880314,1.8634,2273.6,2273.3,0.43991]
[1725731880502,2.30325,2273.6,2273.3,0.43991]
[1725731880705,1.8634,2273.6,2273.3,0.43989]
[1725731881012,1.8634,2273.6,2273.4,0.43988]
[1725731881215,1.8634,2273.6,2273.5,0.43987]
[1725731881401,1.7995,2273.8,2273.6,0.43985]
[1725731882015,1.7995,2273.8,2273.5,0.43986]
[1725731882511,1.7995,2273.8,2273.6,0.43985]
[1725731883213,1.7995,2273.8,2273.7,0.43983]
[1725731883606,3.05,2273.9,2273.7,0.43983]
[1725731884007,6.2578,2273.9,2273.7,0.43983]
[1725731884412,3.05,2273.9,2273.8,0.43981]
[1725731884608,3.05,2273.9,2273.7,0.43982]
[1725731885015,1.7572,2274.0,2273.4,1.09969]
[1725731885313,3.05,2274.1,2273.9,0.43978]
[1725731886309,8.0114,2274.3,2274.0,0.43977]
[1725731887116,8.0114,2274.3,2273.6,4.9821]
[1725731887117,8.0114,2274.3,2274.1,0.43975]
[1725731887713,8.0114,2274.3,2274.2,0.43973]
[1725731889120,6.2578,2274.3,2274.2,0.43973]
[1725731889419,6.2578,2274.3,2273.6,8.0321]
[1725731889420,6.2578,2274.3,2273.6,4.9821]
[1725731889616,6.2578,2274.3,2274.0,0.43977]
[1725731889918,3.05,2274.2,2273.6,1.7743]
[1725731890122,0.43978,2274.0,2273.6,1.7743]
[1725731890420,3.48975,2274.2,2273.8,0.4398]
[1725731890618,0.43976,2274.1,2273.7,0.43982]
[1725731890826,0.43976,2274.1,2273.8,0.43981]
[1725731891119,3.05,2274.2,2273.6,1.7743]
[1725731891428,1.09928,2274.4,2274.0,0.43977]
[1725731891429,3.2078,2274.1,2274.0,0.43977]
[1725731891609,1.09918,2274.6,2273.8,3.2078]
[1725731891610,1.796,2274.6,2273.8,3.2078]
[1725731891810,0.4397,2274.4,2274.1,0.43974]
[1725731892816,0.43967,2274.5,2274.1,0.43974]
[1725731893017,0.43964,2274.7,2274.1,3.2078]
[1725731893217,0.43964,2274.7,2274.4,0.43969]
[1725731894013,3.64743,2274.8,2274.5,0.43967]
[1725731894230,0.43962,2274.8,2274.5,0.43967]
[1725731894523,0.43964,2274.7,2274.5,0.43967]
[1725731894816,0.43964,2274.7,2274.4,0.43968]
[1725731895129,3.2078,2274.8,2274.5,0.43967]
[1725731895327,0.43964,2274.7,2274.5,0.43967]
[1725731895527,4.33732582,2274.8,2274.5,0.43967]
[1725731895820,4.77694582,2274.8,2274.5,0.43967]
[1725731896525,1.56916582,2274.7,2274.4,0.43968]
[1725731897516,1.12952582,2274.6,2274.5,0.43967]
[1725731898022,1.70128047,2274.7,2274.5,0.43967]
[1725731898023,3.64742,2274.8,2274.5,0.43967]
[1725731898215,0.43964,2274.7,2274.4,0.43968]
[1725731898415,0.43964,2274.7,2274.5,0.43967]
[1725731898615,0.43964,2274.7,2274.4,0.43968]
[1725731899216,0.43964,2274.7,2274.5,0.43967]
[1725731899419,6.2578,2274.8,2274.5,0.43967]
[1725731899420,6.69743,2274.8,2274.5,0.43967]
[1725731899614,6.69743,2274.8,2274.6,0.43965]
[1725731899825,0.20756731,2274.7,2274.6,0.43965]
[1725731900024,4.60356731,2274.7,2274.6,0.43965]
[1725731900721,2.26141,2274.9,2274.7,0.43964]
[1725731900918,0.20756603,2274.8,2274.2,2.93801]
[1725731901119,2.26141,2274.9,2274.2,2.93801]
[1725731901324,0.20756242,2274.8,2274.6,0.43964]
[1725731901519,1.8218,2274.9,2274.6,0.43965]
[1725731901720,3.41535447,2274.8,2274.6,0.43965]
[1725731902028,0.20755447,2274.7,2274.6,0.43965]
[1725731902222,1.57194561,2274.7,2274.6,0.43965]
[1725731903241,3.2078,2274.8,2274.6,0.43965]
[1725731903522,1.57194726,2274.7,2274.6,0.43965]
[1725731903716,1.57194166,2274.7,2274.6,0.43965]
[1725731904318,0.89422048,2274.7,2274.6,0.43965]
[1725731905127,2.59550095,2274.7,2274.6,0.43965]
[1725731906726,1.70128047,2274.7,2274.6,0.43965]
[1725731906930,2.59550429,2274.7,2274.6,0.43965]
[1725731907128,0.89422382,2274.7,2274.6,0.43965]
[1725731907335,3.81186141,2274.7,2274.6,0.43965]
[1725731907628,9.98784696,2274.7,2274.1,1.8021]
[1725731907836,2.93852989,2274.2,2274.1,0.43973]
[1725731908027,3.83275371,2274.2,2274.1,0.43973]
[1725731908233,3.15500888,2274.2,2274.1,4.83733]